[Event "2026 European Womens Championship"]
[Site "Batumi, GE"]
[Date "2026.06.04"]
[Round "10"]
[White "Demirtas, Hafize"]
[Black "Manukyan, Tamara"]
[Result "1-0"]
[Board "75"]
[TimeControl "5400+30"]
[WhiteFideId "6382070"]
[BlackFideId "13321307"]
[WhiteElo "1928"]
[BlackElo "1707"]
[WhiteClock "0:19:35"]
[BlackClock "0:16:51"]
[Variant "Standard"]

1. e4 {[%clk 1:30:45]}  d5 {[%clk 1:30:56]} 2. exd5 {[%clk 1:31:11]}  Nf6 {[%clk 1:31:23]} 3. Nf3 {[%clk 1:31:35]}  Nxd5 {[%clk 1:31:46]}
4. d4 {[%clk 1:32:01]}  Bf5 {[%clk 1:32:09]} 5. Bd3 {[%clk 1:31:57]}  Bxd3 {[%clk 1:32:31]} 6. Qxd3 {[%clk 1:32:21]}  e6 {[%clk 1:32:53]}
7. O-O {[%clk 1:28:49]}  Be7 {[%clk 1:33:13]} 8. a3 {[%clk 1:28:09]}  O-O {[%clk 1:33:30]} 9. c4 {[%clk 1:27:38]}  Nf6 {[%clk 1:33:43]}
10. Qc2 {[%clk 1:23:06]}  c6 {[%clk 1:32:03]} 11. Nc3 {[%clk 1:22:07]}  Nbd7 {[%clk 1:32:06]} 12. Bg5 {[%clk 1:21:49]}  Nb6 {[%clk 1:31:32]}
13. b3 {[%clk 1:20:46]}  h6 {[%clk 1:31:35]} 14. Bf4 {[%clk 1:17:19]}  Nh5 {[%clk 1:30:39]} 15. Be3 {[%clk 1:17:13]}  f5 {[%clk 1:24:38]}
16. a4 {[%clk 1:15:15]}  Qe8 {[%clk 1:16:04]} 17. Rad1 {[%clk 1:10:29]}  g5 {[%clk 1:08:43]} 18. Ne5 {[%clk 1:02:28]}  Nd7 {[%clk 1:02:18]}
19. Nxd7 {[%clk 0:59:41]}  Qxd7 {[%clk 1:02:43]} 20. d5 {[%clk 1:00:04]}  cxd5 {[%clk 1:01:56]} 21. cxd5 {[%clk 1:00:22]}  e5 {[%clk 0:56:54]}
22. d6 {[%clk 0:56:13]}  Bf6 {[%clk 0:46:37]} 23. Nd5 {[%clk 0:47:10]}  Rac8 {[%clk 0:42:42]} 24. Qe2 {[%clk 0:45:42]}  Ng7 {[%clk 0:42:37]}
25. Bxa7 {[%clk 0:43:20]}  Rc6 {[%clk 0:34:44]} 26. b4 {[%clk 0:36:59]}  Rxd6 {[%clk 0:33:00]} 27. Qa2 {[%clk 0:25:45]}  Ne6 {[%clk 0:22:41]}
28. Bc5 {[%clk 0:24:55]}  Kg7 {[%clk 0:19:37]} 29. Nxf6 {[%clk 0:22:30]}  Rxf6 {[%clk 0:17:46]} 30. Rxd6 {[%clk 0:22:14]}  Qc8 {[%clk 0:17:23]}
31. Qd5 {[%clk 0:19:30]}  e4 {[%clk 0:16:51]} 32. Bd4 {[%clk 0:19:35]} 1-0

[Event "2026 European Womens Championship"]
[Site "Batumi, GE"]
[Date "2026.06.04"]
[Round "10"]
[White "Vakhania, Aleksandra"]
[Black "Chighvaria, Ana"]
[Result "1-0"]
[Board "76"]
[TimeControl "5400+30"]
[WhiteFideId "13602560"]
[BlackFideId "13628666"]
[WhiteElo "2079"]
[BlackElo "1518"]
[WhiteTitle "WIM"]
[WhiteClock "1:18:54"]
[BlackClock "0:51:06"]
[Variant "Standard"]

1. e4 {[%clk 1:30:49]}  c5 {[%clk 1:30:56]} 2. Nc3 {[%clk 1:31:13]}  Nc6 {[%clk 1:31:23]} 3. f4 {[%clk 1:31:35]}  g6 {[%clk 1:31:20]}
4. Nf3 {[%clk 1:31:59]}  Bg7 {[%clk 1:31:45]} 5. Bb5 {[%clk 1:32:25]}  a6 {[%clk 1:31:40]} 6. Bxc6 {[%clk 1:32:48]}  dxc6 {[%clk 1:31:58]}
7. O-O {[%clk 1:33:11]}  Bg4 {[%clk 1:31:16]} 8. d3 {[%clk 1:33:34]}  Nf6 {[%clk 1:29:37]} 9. h3 {[%clk 1:33:56]}  Bxf3 {[%clk 1:29:49]}
10. Qxf3 {[%clk 1:34:20]}  O-O {[%clk 1:29:49]} 11. Be3 {[%clk 1:34:21]}  Nd7 {[%clk 1:29:04]} 12. e5 {[%clk 1:33:02]}  Rc8 {[%clk 1:25:24]}
13. Ne4 {[%clk 1:33:20]}  b6 {[%clk 1:25:24]} 14. a4 {[%clk 1:33:29]}  a5 {[%clk 1:25:09]} 15. Rae1 {[%clk 1:33:32]}  Qc7 {[%clk 1:20:43]}
16. Qg4 {[%clk 1:27:58]}  f5 {[%clk 1:14:42]} 17. exf6 {[%clk 1:28:16]}  Nxf6 {[%clk 1:15:01]} 18. Qe6+ {[%clk 1:26:53]}  Kh8 {[%clk 1:15:18]}
19. Ng5 {[%clk 1:27:13]}  h6 {[%clk 1:14:45]} 20. Nf7+ {[%clk 1:25:04]}  Kh7 {[%clk 1:15:06]} 21. f5 {[%clk 1:20:43]}  Rxf7 {[%clk 1:02:18]}
22. fxg6+ {[%clk 1:20:04]}  Kh8 {[%clk 1:02:19]} 23. gxf7 {[%clk 1:19:05]}  Rf8 {[%clk 0:52:21]} 24. Bf4 {[%clk 1:19:10]}  Qd7 {[%clk 0:51:21]}
25. Qxd7 {[%clk 1:19:20]}  Nxd7 {[%clk 0:51:44]} 26. Rxe7 {[%clk 1:19:48]}  Nf6 {[%clk 0:51:22]} 27. Bxh6 {[%clk 1:18:59]}  Nd5 {[%clk 0:51:09]}
28. Re6 {[%clk 1:18:18]}  Kh7 {[%clk 0:50:58]} 29. Bxg7 {[%clk 1:18:31]}  Kxg7 {[%clk 0:51:21]} 30. Rxc6 {[%clk 1:18:48]}  Ne3 {[%clk 0:51:06]}
31. Rf2 {[%clk 1:18:54]} 1-0

[Event "2026 European Womens Championship"]
[Site "Batumi, GE"]
[Date "2026.06.04"]
[Round "10"]
[White "Kedelidze, Aneta"]
[Black "Koghuashvili, Tekla"]
[Result "1-0"]
[Board "77"]
[TimeControl "5400+30"]
[WhiteFideId "13626191"]
[BlackFideId "13621564"]
[WhiteElo "1676"]
[BlackElo "1921"]
[WhiteClock "0:01:23"]
[BlackClock "1:20:34"]
[Variant "Standard"]
[Termination "forfeit"]

1. d4 {[%clk 1:30:57]}  d5 {[%clk 1:30:55]} 2. c4 {[%clk 1:31:19]}  dxc4 {[%clk 1:31:21]} 3. Nf3 {[%clk 1:31:45]}  Nf6 {[%clk 1:31:39]}
4. e3 {[%clk 1:32:08]}  Bg4 {[%clk 1:32:04]} 5. Bxc4 {[%clk 1:32:29]}  e6 {[%clk 1:32:28]} 6. O-O {[%clk 1:32:43]}  Nc6 {[%clk 1:32:50]}
7. Nc3 {[%clk 1:32:55]}  Bd6 {[%clk 1:33:08]} 8. h3 {[%clk 1:33:03]}  Bh5 {[%clk 1:33:32]} 9. Nb5 {[%clk 1:31:12]}  O-O {[%clk 1:32:29]}
10. Nxd6 {[%clk 1:28:45]}  Qxd6 {[%clk 1:32:08]} 11. Be2 {[%clk 1:27:34]}  Rfd8 {[%clk 1:30:08]} 12. Qb3 {[%clk 1:24:17]}  b6 {[%clk 1:29:38]}
13. Rd1 {[%clk 1:24:01]}  h6 {[%clk 1:28:26]} 14. Bd2 {[%clk 1:23:01]}  Nd5 {[%clk 1:22:11]} 15. Rac1 {[%clk 1:21:01]}  a5 {[%clk 1:20:53]}
16. Qc4 {[%clk 1:14:14]}  Nde7 {[%clk 1:18:26]} 17. Qb5 {[%clk 1:00:59]}  f5 {[%clk 1:17:03]} 18. b3 {[%clk 0:55:49]}  Be8 {[%clk 1:15:36]}
19. Qc4 {[%clk 0:55:24]}  Nd5 {[%clk 1:14:11]} 20. Qc2 {[%clk 0:51:31]}  Ncb4 {[%clk 1:09:18]} 21. Qb2 {[%clk 0:48:24]}  Bc6 {[%clk 1:07:11]}
22. a3 {[%clk 0:47:38]}  Na6 {[%clk 1:07:29]} 23. Ne5 {[%clk 0:45:17]}  Bb7 {[%clk 1:07:47]} 24. Qc2 {[%clk 0:39:46]}  Qxa3 {[%clk 1:06:54]}
25. Bh5 {[%clk 0:39:46]}  Bc8 {[%clk 1:02:33]} 26. Qc6 {[%clk 0:38:48]}  Ra7 {[%clk 1:01:37]} 27. Bf7+ {[%clk 0:37:59]}  Kh8 {[%clk 1:00:19]}
28. Bxe6 {[%clk 0:21:06]}  Nb8 {[%clk 0:59:55]} 29. Nf7+ {[%clk 0:20:21]}  Kh7 {[%clk 1:00:02]} 30. Qc2 {[%clk 0:14:09]}  Bxe6 {[%clk 0:59:29]}
31. Nxd8 {[%clk 0:14:33]}  Bd7 {[%clk 0:59:44]} 32. Nf7 {[%clk 0:14:09]}  Nc6 {[%clk 0:59:39]} 33. Ne5 {[%clk 0:13:40]}  Nxe5 {[%clk 0:59:45]}
34. dxe5 {[%clk 0:14:04]}  Be6 {[%clk 0:59:51]} 35. e4 {[%clk 0:13:24]}  Ne7 {[%clk 0:59:36]} 36. exf5 {[%clk 0:12:14]}  Bxf5 {[%clk 0:59:54]}
37. Qc4 {[%clk 0:11:33]}  Bg6 {[%clk 0:58:25]} 38. Bc3 {[%clk 0:08:39]}  Nf5 {[%clk 0:57:59]} 39. e6 {[%clk 0:06:52]}  c6 {[%clk 0:57:11]}
40. Ra1 {[%clk 0:01:28]}  Qe7 {[%clk 0:57:23]} 41. Bb2 {[%clk 0:21:46]}  Rc7 {[%clk 1:26:22]} 42. Be5 {[%clk 0:20:55]}  Rc8 {[%clk 1:25:17]}
43. Rd7 {[%clk 0:21:08]}  Qg5 {[%clk 1:25:22]} 44. Qg4 {[%clk 0:21:29]}  Re8 {[%clk 1:23:47]} 45. Qxg5 {[%clk 0:21:50]}  hxg5 {[%clk 1:24:13]}
46. Bc7 {[%clk 0:14:43]}  b5 {[%clk 1:22:45]} 47. Bxa5 {[%clk 0:06:58]}  Rxe6 {[%clk 1:23:05]} 48. Bd2 {[%clk 0:07:21]}  Be8 {[%clk 1:23:07]}
49. Rd8 {[%clk 0:07:07]}  Kg6 {[%clk 1:23:09]} 50. Re1 {[%clk 0:05:16]}  Bf7 {[%clk 1:20:43]} 51. Rxe6+ {[%clk 0:05:35]}  Bxe6 {[%clk 1:21:08]}
52. b4 {[%clk 0:05:45]}  Bd5 {[%clk 1:21:25]} 53. Bc3 {[%clk 0:05:46]}  Be6 {[%clk 1:20:29]} 54. g4 {[%clk 0:04:40]}  Ne7 {[%clk 1:20:13]}
55. Rd6 {[%clk 0:03:47]}  Kf7 {[%clk 1:20:36]} 56. Bxg7 {[%clk 0:03:08]}  Nd5 {[%clk 1:20:03]} 57. Rxc6 {[%clk 0:01:19]}  Nxb4 {[%clk 1:20:25]}
58. Rc7+ {[%clk 0:01:41]}  Kg6 {[%clk 1:20:46]} 59. Rb7 {[%clk 0:00:35]}  Nd5 {[%clk 1:20:52]} 60. Bf8 {[%clk 0:00:35]}  Nf4 {[%clk 1:21:12]}
61. Kh2 {[%clk 0:00:32]}  Bc4 {[%clk 1:21:20]} 62. Rb6+ {[%clk 0:00:47]}  Kf7 {[%clk 1:21:17]} 63. Bb4 {[%clk 0:00:34]}  Nd5 {[%clk 1:20:38]}
64. Rb7+ {[%clk 0:00:58]}  Kf6 {[%clk 1:20:15]} 65. Bd2 {[%clk 0:01:14]}  Kg6 {[%clk 1:19:43]} 66. Rb8 {[%clk 0:01:02]}  Kf6 {[%clk 1:19:02]}
67. Kg3 {[%clk 0:00:59]}  Nc7 {[%clk 1:19:09]} 68. Rf8+ {[%clk 0:00:45]}  Kg6 {[%clk 1:19:14]} 69. Rf5 {[%clk 0:00:36]}  Ne6 {[%clk 1:19:38]}
70. Bc3 {[%clk 0:00:48]}  Kh6 {[%clk 1:19:18]} 71. h4 {[%clk 0:00:35]}  gxh4+ {[%clk 1:19:33]} 72. Kxh4 {[%clk 0:01:01]}  Nc7 {[%clk 1:19:40]}
73. Rf6+ {[%clk 0:00:37]}  Kh7 {[%clk 1:20:03]} 74. Rb6 {[%clk 0:00:33]}  Nd5 {[%clk 1:20:18]} 75. Rb7+ {[%clk 0:00:58]}  Kg6 {[%clk 1:20:34]}
76. Rg7+ {[%clk 0:01:23]} 1-0

[Event "2026 European Womens Championship"]
[Site "Batumi, GE"]
[Date "2026.06.04"]
[Round "10"]
[White "Rekhviashvili, Mariam"]
[Black "Recica, Jona"]
[Result "0-1"]
[Board "78"]
[TimeControl "5400+30"]
[WhiteFideId "13635859"]
[BlackFideId "22105239"]
[WhiteElo "1836"]
[BlackElo "1842"]
[WhiteClock "0:30:47"]
[BlackClock "0:46:30"]
[Variant "Standard"]

1. e4 {[%clk 1:27:14]}  e5 {[%clk 1:30:48]} 2. Nf3 {[%clk 1:25:58]}  Nc6 {[%clk 1:31:08]} 3. Bb5 {[%clk 1:26:13]}  a6 {[%clk 1:31:03]}
4. Bxc6 {[%clk 1:26:36]}  dxc6 {[%clk 1:31:25]} 5. O-O {[%clk 1:27:03]}  Bg4 {[%clk 1:31:26]} 6. h3 {[%clk 1:27:27]}  h5 {[%clk 1:30:34]}
7. d3 {[%clk 1:27:41]}  Qf6 {[%clk 1:30:37]} 8. Nbd2 {[%clk 1:28:02]}  Ne7 {[%clk 1:29:46]} 9. Re1 {[%clk 1:27:54]}  Ng6 {[%clk 1:29:10]}
10. d4 {[%clk 1:28:16]}  Nf4 {[%clk 1:27:54]} 11. dxe5 {[%clk 1:28:38]}  Qe6 {[%clk 1:27:50]} 12. Nb3 {[%clk 1:20:47]}  Rd8 {[%clk 1:25:38]}
13. Bd2 {[%clk 1:05:16]}  Bxh3 {[%clk 1:21:24]} 14. Ng5 {[%clk 0:42:09]}  Qg6 {[%clk 1:18:32]} 15. Qf3 {[%clk 0:40:23]}  Qxg5 {[%clk 1:18:33]}
16. Bxf4 {[%clk 0:40:42]}  Qg4 {[%clk 1:18:49]} 17. Qxh3 {[%clk 0:38:08]}  Qxf4 {[%clk 1:18:57]} 18. e6 {[%clk 0:37:36]}  f6 {[%clk 1:12:17]}
19. Qf5 {[%clk 0:36:40]}  Qg4 {[%clk 1:08:26]} 20. f3 {[%clk 0:31:06]}  Qxf5 {[%clk 1:06:26]} 21. exf5 {[%clk 0:31:31]}  h4 {[%clk 1:00:10]}
22. Re4 {[%clk 0:29:30]}  Rd5 {[%clk 0:55:18]} 23. Rae1 {[%clk 0:21:15]}  Bd6 {[%clk 0:51:22]} 24. Rg4 {[%clk 0:19:07]}  Bg3 {[%clk 0:50:17]}
25. c4 {[%clk 0:17:22]}  Rxf5 {[%clk 0:47:21]} 26. Ree4 {[%clk 0:16:11]}  g5 {[%clk 0:46:50]} 27. Nd4 {[%clk 0:16:21]}  Rc5 {[%clk 0:42:13]}
28. b3 {[%clk 0:16:10]}  Ra5 {[%clk 0:39:46]} 29. a4 {[%clk 0:16:00]}  Bf4 {[%clk 0:39:09]} 30. Kf1 {[%clk 0:14:43]}  f5 {[%clk 0:38:28]}
31. b4 {[%clk 0:14:42]}  fxe4 {[%clk 0:33:38]} 32. bxa5 {[%clk 0:15:07]}  exf3 {[%clk 0:33:51]} 33. Nxf3 {[%clk 0:15:28]}  Rf8 {[%clk 0:32:02]}
34. Ke2 {[%clk 0:14:53]}  Rf5 {[%clk 0:28:18]} 35. Kd3 {[%clk 0:14:43]}  Rxa5 {[%clk 0:27:37]} 36. Nxh4 {[%clk 0:14:59]}  Rxa4 {[%clk 0:25:40]}
37. g3 {[%clk 0:15:11]}  Ra3+ {[%clk 0:25:42]} 38. Ke4 {[%clk 0:15:31]}  Rxg3 {[%clk 0:24:35]} 39. Rxg3 {[%clk 0:15:39]}  Bxg3 {[%clk 0:24:49]}
40. Nf5 {[%clk 0:15:57]}  Bd6 {[%clk 0:23:34]} 41. Nd4 {[%clk 0:14:46]}  Ke7 {[%clk 0:23:43]} 42. Kf5 {[%clk 0:14:58]}  c5 {[%clk 0:23:47]}
43. Nf3 {[%clk 0:15:20]}  g4 {[%clk 0:24:04]} 44. Kxg4 {[%clk 0:14:58]}  Kxe6 {[%clk 0:24:27]} 45. Nd2 {[%clk 0:15:24]}  Ke5 {[%clk 0:24:35]}
46. Nb3 {[%clk 0:15:48]}  b6 {[%clk 0:24:53]} 47. Kf3 {[%clk 0:16:13]}  a5 {[%clk 0:23:32]} 48. Ke3 {[%clk 0:16:33]}  Kf5 {[%clk 0:23:33]}
49. Kd3 {[%clk 0:16:53]}  Bf4 {[%clk 0:23:46]} 50. Na1 {[%clk 0:16:54]}  a4 {[%clk 0:23:43]} 51. Nc2 {[%clk 0:16:56]}  Bc1 {[%clk 0:24:04]}
52. Kc3 {[%clk 0:17:23]}  Ke4 {[%clk 0:24:10]} 53. Ne1 {[%clk 0:17:47]}  a3 {[%clk 0:23:23]} 54. Kb3 {[%clk 0:18:11]}  Ke3 {[%clk 0:21:30]}
55. Ng2 {[%clk 0:18:30]}  Ke2 {[%clk 0:20:37]} 56. Nh4 {[%clk 0:18:52]}  Bb2 {[%clk 0:20:27]} 57. Ng6 {[%clk 0:19:02]}  Kd2 {[%clk 0:20:47]}
58. Nf4 {[%clk 0:19:16]}  Kc1 {[%clk 0:20:40]} 59. Ka2 {[%clk 0:19:42]}  Kc2 {[%clk 0:21:01]} 60. Nd5 {[%clk 0:20:00]}  Be5 {[%clk 0:20:04]}
61. Kxa3 {[%clk 0:20:12]}  Kd3 {[%clk 0:18:28]} 62. Kb3 {[%clk 0:20:34]}  Bd6 {[%clk 0:18:08]} 63. Nf6 {[%clk 0:20:20]}  c6 {[%clk 0:18:15]}
64. Ng4 {[%clk 0:20:12]}  b5 {[%clk 0:18:25]} 65. Nf2 {[%clk 0:20:37]}  Kd4 {[%clk 0:18:24]} 66. Ng4 {[%clk 0:18:45]}  Bg3 {[%clk 0:15:57]}
67. Nf6 {[%clk 0:14:42]}  Kd3 {[%clk 0:16:09]} 68. cxb5 {[%clk 0:05:43]}  cxb5 {[%clk 0:16:22]} 69. Nd5 {[%clk 0:04:35]}  Bd6 {[%clk 0:16:06]}
70. Kb2 {[%clk 0:02:14]}  c4 {[%clk 0:16:17]} 71. Nb6 {[%clk 0:29:59]}  c3+ {[%clk 0:46:21]} 72. Ka2 {[%clk 0:29:41]}  c2 {[%clk 0:46:39]}
73. Kb2 {[%clk 0:29:50]}  Bf4 {[%clk 0:45:53]} 74. Nd5 {[%clk 0:29:45]}  c1=Q+ {[%clk 0:46:15]} 75. Ka2 {[%clk 0:30:10]}  Qc2+ {[%clk 0:46:15]}
76. Ka3 {[%clk 0:30:27]}  Qa4+ {[%clk 0:46:10]} 77. Kb2 {[%clk 0:30:39]}  Be5+ {[%clk 0:46:37]} 78. Kb1 {[%clk 0:30:47]}  Qa1# {[%clk 0:46:30]} 0-1

[Event "2026 European Womens Championship"]
[Site "Batumi, GE"]
[Date "2026.06.04"]
[Round "10"]
[White "Saraci, Rinesa"]
[Black "Xing, Lida"]
[Result "1/2-1/2"]
[Board "79"]
[TimeControl "5400+30"]
[WhiteFideId "4701976"]
[BlackFideId "13326171"]
[WhiteElo "1754"]
[BlackElo "1598"]
[WhiteTitle "WCM"]
[WhiteClock "0:06:21"]
[BlackClock "0:46:47"]
[Variant "Standard"]

1. e4 {[%clk 1:30:55]}  e5 {[%clk 1:30:56]} 2. Nf3 {[%clk 1:31:19]}  Nc6 {[%clk 1:31:13]} 3. Bb5 {[%clk 1:31:34]}  a6 {[%clk 1:31:37]}
4. Ba4 {[%clk 1:31:58]}  Nf6 {[%clk 1:31:59]} 5. O-O {[%clk 1:32:10]}  b5 {[%clk 1:32:21]} 6. Bb3 {[%clk 1:32:27]}  Be7 {[%clk 1:32:47]}
7. Re1 {[%clk 1:32:39]}  O-O {[%clk 1:33:10]} 8. c3 {[%clk 1:32:49]}  d6 {[%clk 1:33:26]} 9. h3 {[%clk 1:30:43]}  Na5 {[%clk 1:33:25]}
10. Bc2 {[%clk 1:28:23]}  c5 {[%clk 1:33:27]} 11. d3 {[%clk 1:27:37]}  Bb7 {[%clk 1:31:06]} 12. Nbd2 {[%clk 1:26:04]}  Nd7 {[%clk 1:26:25]}
13. d4 {[%clk 1:13:44]}  cxd4 {[%clk 1:26:39]} 14. cxd4 {[%clk 1:14:01]}  Rc8 {[%clk 1:25:47]} 15. dxe5 {[%clk 1:06:23]}  dxe5 {[%clk 1:25:35]}
16. Nf1 {[%clk 1:03:07]}  Qc7 {[%clk 1:23:07]} 17. Bb3 {[%clk 0:55:16]}  Nxb3 {[%clk 1:23:10]} 18. axb3 {[%clk 0:53:31]}  Rfd8 {[%clk 1:20:14]}
19. Bd2 {[%clk 0:52:34]}  Bc5 {[%clk 1:15:23]} 20. b4 {[%clk 0:47:17]}  Bd6 {[%clk 1:10:35]} 21. Ng3 {[%clk 0:38:57]}  Nb8 {[%clk 1:06:57]}
22. Rc1 {[%clk 0:30:26]}  Qe7 {[%clk 0:56:35]} 23. Nf5 {[%clk 0:26:29]}  Qf8 {[%clk 0:56:58]} 24. Rxc8 {[%clk 0:25:56]}  Bxc8 {[%clk 0:56:55]}
25. Bg5 {[%clk 0:20:31]}  f6 {[%clk 0:54:57]} 26. Qb3+ {[%clk 0:19:59]}  Qf7 {[%clk 0:53:52]} 27. Qxf7+ {[%clk 0:18:41]}  Kxf7 {[%clk 0:54:17]}
28. Nxd6+ {[%clk 0:17:48]}  Rxd6 {[%clk 0:54:38]} 29. Be3 {[%clk 0:17:16]}  Nc6 {[%clk 0:53:36]} 30. Bc5 {[%clk 0:16:20]}  Rd3 {[%clk 0:53:48]}
31. Rc1 {[%clk 0:15:29]}  Be6 {[%clk 0:51:07]} 32. Rc3 {[%clk 0:13:00]}  Rd1+ {[%clk 0:50:24]} 33. Kh2 {[%clk 0:12:55]}  g5 {[%clk 0:47:40]}
34. g4 {[%clk 0:10:59]}  Rd8 {[%clk 0:44:47]} 35. Ra3 {[%clk 0:10:31]}  Bc8 {[%clk 0:44:51]} 36. Rc3 {[%clk 0:08:09]}  Bb7 {[%clk 0:41:05]}
37. Kg3 {[%clk 0:05:13]}  Rd7 {[%clk 0:40:11]} 38. Ng1 {[%clk 0:04:39]}  Nd4 {[%clk 0:39:03]} 39. f3 {[%clk 0:04:21]}  Ne6 {[%clk 0:39:06]}
40. Be3 {[%clk 0:02:58]}  Kg6 {[%clk 0:32:49]} 41. Kf2 {[%clk 0:26:21]}  h5 {[%clk 1:00:47]} 42. Ne2 {[%clk 0:24:59]}  hxg4 {[%clk 1:01:10]}
43. hxg4 {[%clk 0:25:23]}  Rh7 {[%clk 1:01:06]} 44. Kg2 {[%clk 0:24:59]}  Rd7 {[%clk 0:59:40]} 45. Nc1 {[%clk 0:23:51]}  Nd4 {[%clk 0:58:53]}
46. Bxd4 {[%clk 0:12:40]}  Rxd4 {[%clk 0:59:14]} 47. Nd3 {[%clk 0:12:50]}  Rd6 {[%clk 0:52:42]} 48. Kf2 {[%clk 0:12:05]}  Bc6 {[%clk 0:51:02]}
49. Ke3 {[%clk 0:11:06]}  Bd7 {[%clk 0:50:26]} 50. Nc5 {[%clk 0:09:38]}  Bc8 {[%clk 0:46:47]} 51. Ra3 {[%clk 0:06:21]} 1/2-1/2

[Event "2026 European Womens Championship"]
[Site "Batumi, GE"]
[Date "2026.06.05"]
[Round "11"]
[White "Kulon, Klaudia"]
[Black "Hnatyshyn, Anastasiia"]
[Result "1/2-1/2"]
[Board "1"]
[TimeControl "5400+30"]
[WhiteFideId "1131044"]
[BlackFideId "14198339"]
[WhiteElo "2377"]
[BlackElo "2207"]
[WhiteTitle "IM"]
[BlackTitle "WFM"]
[WhiteClock "0:22:29"]
[BlackClock "0:29:54"]
[Variant "Standard"]

1. e4 {[%clk 1:30:57]}  c5 {[%clk 1:30:56]} 2. Nf3 {[%clk 1:31:22]}  Nc6 {[%clk 1:31:22]} 3. d4 {[%clk 1:31:39]}  cxd4 {[%clk 1:31:47]}
4. Nxd4 {[%clk 1:32:06]}  e5 {[%clk 1:32:13]} 5. Nf5 {[%clk 1:32:19]}  d5 {[%clk 1:31:07]} 6. Qxd5 {[%clk 1:32:42]}  Qxd5 {[%clk 1:30:57]}
7. exd5 {[%clk 1:33:07]}  Bxf5 {[%clk 1:31:01]} 8. dxc6 {[%clk 1:33:32]}  bxc6 {[%clk 1:31:21]} 9. Bd3 {[%clk 1:33:57]}  Bxd3 {[%clk 1:28:39]}
10. cxd3 {[%clk 1:33:54]}  O-O-O {[%clk 1:28:59]} 11. Ke2 {[%clk 1:34:05]}  Ne7 {[%clk 1:26:30]} 12. Be3 {[%clk 1:33:18]}  Nd5 {[%clk 1:24:03]}
13. Rc1 {[%clk 1:32:22]}  Kb7 {[%clk 1:24:16]} 14. Nd2 {[%clk 1:31:32]}  Bd6 {[%clk 1:13:57]} 15. Nb3 {[%clk 1:28:17]}  Bc7 {[%clk 1:14:05]}
16. Nc5+ {[%clk 1:26:43]}  Ka8 {[%clk 1:13:55]} 17. Ne4 {[%clk 1:23:31]}  Kb7 {[%clk 1:13:35]} 18. Rc4 {[%clk 1:14:34]}  Bb6 {[%clk 1:01:08]}
19. Rac1 {[%clk 1:10:30]}  Ne7 {[%clk 1:01:08]} 20. Ng5 {[%clk 1:03:15]}  Rdf8 {[%clk 0:58:16]} 21. Ne4 {[%clk 0:52:43]}  Rd8 {[%clk 0:56:23]}
22. Ng5 {[%clk 0:52:07]}  Rdf8 {[%clk 0:56:40]} 23. Bc5 {[%clk 0:49:20]}  Bxc5 {[%clk 0:55:41]} 24. Rxc5 {[%clk 0:49:45]}  h6 {[%clk 0:47:56]}
25. Ne4 {[%clk 0:49:40]}  f6 {[%clk 0:47:42]} 26. Nd6+ {[%clk 0:45:54]}  Kc7 {[%clk 0:43:06]} 27. Nb5+ {[%clk 0:44:09]}  Kb6 {[%clk 0:42:00]}
28. Na3 {[%clk 0:40:56]}  Rb8 {[%clk 0:40:28]} 29. b4 {[%clk 0:40:13]}  Rhd8 {[%clk 0:37:33]} 30. Nc4+ {[%clk 0:36:16]}  Kc7 {[%clk 0:37:40]}
31. a3 {[%clk 0:34:53]}  Rd5 {[%clk 0:32:43]} 32. Rxd5 {[%clk 0:34:07]}  Nxd5 {[%clk 0:33:07]} 33. Na5 {[%clk 0:34:19]}  Ne7 {[%clk 0:31:31]}
34. g3 {[%clk 0:33:58]}  Kd6 {[%clk 0:29:57]} 35. h4 {[%clk 0:33:38]}  h5 {[%clk 0:29:23]} 36. f3 {[%clk 0:32:17]}  Rb5 {[%clk 0:24:41]}
37. Rc4 {[%clk 0:26:03]}  Kd5 {[%clk 0:19:11]} 38. a4 {[%clk 0:25:08]}  Rb6 {[%clk 0:17:54]} 39. d4 {[%clk 0:17:22]}  exd4 {[%clk 0:07:55]}
40. Kd3 {[%clk 0:17:08]}  Kd6 {[%clk 0:06:57]} 41. Rxd4+ {[%clk 0:15:42]}  Kc7 {[%clk 0:07:12]} 42. Nb3 {[%clk 0:26:38]}  Nd5 {[%clk 0:29:12]}
43. Nc5 {[%clk 0:25:05]}  Kd6 {[%clk 0:29:09]} 44. Ne4+ {[%clk 0:25:21]}  Ke6 {[%clk 0:29:23]} 45. Nc5+ {[%clk 0:25:20]}  Kd6 {[%clk 0:29:37]}
46. Ne4+ {[%clk 0:22:15]}  Ke6 {[%clk 0:29:54]} 47. Nc5+ {[%clk 0:22:29]}  Ke5 {[%clk 0:29:53]} 1/2-1/2